fUST/lending_fUST_20260103
["ID","MTS","AMOUNT","RATE_DAILY","PERIOD"]
[400365257,1767442368911,500.0,0.00012113,2]
[400365258,1767442368946,500.0,0.00012113,2]
[400365259,1767442368986,500.0,0.00012113,2]
[400365260,1767442369220,500.0,0.00012113,2]
[400365261,1767442369251,500.0,0.00012113,2]
[400365262,1767442369430,500.0,0.00012113,2]
[400365263,1767442369492,500.0,0.00012113,2]
[400365264,1767442369676,350.0,0.00012113,2]
[400365265,1767442369775,500.0,0.00012113,2]
[400365266,1767442382535,300.0,0.00012113,2]
[400365267,1767442382974,156.53,0.00010831,2]
[400365268,1767442383371,208.7,0.00011302,2]
[400365269,1767442383792,260.88,0.00011773,2]
[400365270,1767442394497,1200.0,0.00012113,2]
[400365283,1767442442210,300.0,0.00012113,2]
[400365284,1767442454681,189.33,0.00010906,2]
[400365285,1767442455071,252.44,0.0001138,2]
[400365286,1767442455469,315.55,0.00011854,2]
[400365287,1767442468525,566.84,0.000121,2]
[400365288,1767442501428,300.0,0.00012113,2]
[400365289,1767442502113,300.0,0.00012113,2]
[400365290,1767442502928,294.70696643,0.00012113,2]
[400365291,1767442502953,5.29303357,0.00012113,2]
[400365292,1767442503376,300.0,0.00012113,2]
[400365293,1767442503419,300.0,0.00012113,2]
[400365294,1767442517346,500.0,0.00012113,2]
[400365295,1767442517409,500.0,0.00012113,2]
[400365296,1767442517509,500.0,0.00012113,2]
[400365297,1767442517567,500.0,0.00012113,2]
[400365298,1767442517628,297.05487193,0.00012113,2]
[400365299,1767442525780,500.0,0.00012113,2]
[400365300,1767442525819,500.0,0.00012113,2]
[400365301,1767442525855,269.52,0.000121,2]
[400365302,1767442525886,500.0,0.00012113,2]
[400365303,1767442525918,311.03340373,0.00012113,2]
[400365304,1767442525952,500.0,0.00012113,2]
[400365305,1767442525988,500.0,0.00012113,2]
[400365306,1767442526020,500.0,0.00012113,2]
[400365307,1767442526056,500.0,0.00012113,2]
[400365308,1767442526093,500.0,0.00012113,2]
[400365309,1767442526126,500.0,0.00012113,2]
[400365310,1767442526157,500.0,0.00012113,2]
[400365311,1767442526198,500.0,0.00012113,2]
[400365312,1767442526248,500.0,0.00012113,2]
[400365313,1767442526279,500.0,0.00012113,2]
[400365314,1767442526327,17.10869077,0.00012113,2]
[400365315,1767442526483,482.89130923,0.00012113,2]
[400365316,1767442526516,500.0,0.00012113,2]
[400365317,1767442526548,500.0,0.00012113,2]
[400365318,1767442526596,500.0,0.00012113,2]
[400365319,1767442526627,500.0,0.00012113,2]
[400365320,1767442526663,500.0,0.00012113,2]
[400365321,1767442528100,220.37,0.00010431,2]
[400365322,1767442528500,330.55,0.00010905,2]
[400365323,1767442528810,350.08042758,0.00011997,2]
[400365324,1767442528881,440.73,0.00011379,2]
[400365325,1767442529352,550.92,0.00011853,2]
[400365327,1767442536442,1652.39377292,0.00012079,2]
[400365328,1767442539004,366.34369789,0.00012113,2]
[400365329,1767442544553,500.0,0.00012113,2]
[400365330,1767442544588,500.0,0.00012113,2]
[400365331,1767442544622,500.0,0.00012113,2]
[400365332,1767442544776,500.0,0.00012113,2]
[400365333,1767442544812,500.0,0.00012113,2]
[400365334,1767442544847,500.0,0.00012113,2]
[400365335,1767442544887,105.73079238,0.00012113,2]
[400365336,1767442544913,394.26920762,0.00012113,2]
[400365337,1767442544948,500.0,0.00012113,2]
[400365338,1767442544983,500.0,0.00012113,2]
[400365339,1767442545015,500.0,0.00012113,2]
[400365340,1767442545046,500.0,0.00012113,2]
[400365341,1767442545076,500.0,0.00012113,2]
[400365342,1767442545109,500.0,0.00012113,2]
[400365343,1767442545151,500.0,0.00012113,2]
[400365344,1767442545220,500.0,0.00012113,2]
[400365345,1767442545260,500.0,0.00012113,2]
[400365346,1767442545297,500.0,0.00012113,2]
[400365347,1767442545328,500.0,0.00012113,2]
[400365348,1767442545360,500.0,0.00012113,2]
[400365349,1767442545391,500.0,0.00012113,2]
[400365350,1767442545427,500.0,0.00012113,2]
[400365351,1767442545467,500.0,0.00012113,2]
[400365352,1767442545509,500.0,0.00012113,2]
[400365353,1767442545545,500.0,0.00012113,2]
[400365354,1767442545576,500.0,0.00012113,2]
[400365355,1767442545611,394.99639403,0.00012113,2]
[400365356,1767442545641,210.74439835,0.00012113,2]
[400365357,1767442545668,289.25560165,0.00012113,2]
[400365358,1767442545711,500.0,0.00012113,2]
[400365359,1767442545773,500.0,0.00012113,2]
[400365360,1767442545812,500.0,0.00012113,2]
[400365361,1767442562967,300.0,0.00012113,2]
[400365362,1767442572231,500.0,0.00012113,2]
[400365363,1767442572336,500.0,0.00012113,2]
[400365364,1767442572584,500.0,0.00012113,2]
[400365365,1767442572698,544.82376653,0.00012113,2]
[400365366,1767442588827,566.77,0.000121,2]
[400365367,1767442606099,256.72,0.00010424,2]
[400365368,1767442606531,385.08,0.00010898,2]
[400365369,1767442606930,513.43,0.00011372,2]
[400365370,1767442607332,641.79,0.00011846,2]
[400365371,1767442622443,300.0,0.00012113,2]
[400365372,1767442647211,275.46,0.000121,2]
[400365373,1767442677723,-366.10603496,0.00012114,2]
[400365374,1767442682269,300.0,0.00012113,2]
[400365375,1767442682771,210.97,0.0001044,2]
[400365376,1767442683314,316.46,0.00010915,2]
[400365377,1767442683619,421.95,0.00011389,2]
[400365378,1767442684021,527.44,0.00011864,2]
[400365379,1767442694093,1149.86063182,0.00012113,2]
[400365380,1767442694120,50.13936818,0.00012113,2]
[400365381,1767442706165,2186.13838379,0.00012114,2]
[400365382,1767442708020,255.2283191,0.00012113,2]
[400365383,1767442708578,560.95,0.000121,2]
[400365384,1767442717549,500.0,0.00012113,2]
[400365385,1767442717589,528.41890079,0.00012113,2]
[400365386,1767442717623,500.0,0.00012113,2]
[400365387,1767442717662,500.0,0.00012113,2]
[400365388,1767442717725,500.0,0.00012113,2]
[400365389,1767442717780,500.0,0.00012113,2]
[400365390,1767442717823,500.0,0.00012113,2]
[400365391,1767442724056,256.44058853,0.00012113,2]
[400365392,1767442733765,500.0,0.00012113,2]
[400365393,1767442733805,500.0,0.00012113,2]
[400365394,1767442733864,500.0,0.00012113,2]
[400365395,1767442733910,489.4996394,0.00012113,2]
[400365396,1767442741622,500.0,0.00012113,2]
[400365397,1767442741776,179.50841197,0.00012113,2]
[400365398,1767442741811,493.68638824,0.00012113,2]
[400365399,1767442741835,6.31361176,0.00012113,2]
[400365400,1767442741873,431.37663657,0.00012113,2]
[400365401,1767442742744,300.0,0.00012113,2]
[400365402,1767442758786,500.0,0.00012113,2]
[400365403,1767442758819,500.0,0.00012113,2]
[400365404,1767442758849,500.0,0.00012113,2]
[400365405,1767442758879,500.0,0.00012113,2]
[400365406,1767442758913,500.0,0.00012113,2]
[400365407,1767442758943,193.81770261,0.00012113,2]
[400365408,1767442758974,500.0,0.00012113,2]
[400365409,1767442759009,500.0,0.00012113,2]
[400365410,1767442759040,500.0,0.00012113,2]
[400365411,1767442759589,173.38,0.0001043,2]
[400365412,1767442760017,260.07,0.00010904,2]
[400365413,1767442760436,346.77,0.00011378,2]
[400365414,1767442760824,433.46,0.00011852,2]
[400365415,1767442766792,500.0,0.00012113,2]
[400365416,1767442766826,500.0,0.00012113,2]
[400365417,1767442766859,500.0,0.00012113,2]
[400365418,1767442767034,592.88518674,0.00012113,2]
[400365419,1767442767066,500.0,0.00012113,2]
[400365420,1767442767097,500.0,0.00012113,2]
[400365421,1767442767216,500.0,0.00012113,2]
[400365422,1767442767363,261.93686232,0.00012113,2]
[400365423,1767442767389,238.06313768,0.00012113,2]
[400365424,1767442767447,500.0,0.00012113,2]
[400365425,1767442767700,500.0,0.00012113,2]
[400365426,1767442767732,500.0,0.00012113,2]
[400365427,1767442767764,500.0,0.00012113,2]
[400365428,1767442769077,281.17,0.000121,2]
[400365429,1767442784596,500.0,0.00012113,2]
[400365430,1767442784650,500.0,0.00012113,2]
[400365431,1767442784862,500.0,0.00012113,2]
[400365432,1767442784971,265.01963072,0.00012113,2]
[400365433,1767442785109,500.0,0.00012113,2]
[400365434,1767442785316,500.0,0.00012113,2]
[400365435,1767442801807,300.0,0.00012113,2]
[400365436,1767442801966,300.0,0.00012113,2]
[400365437,1767442802334,300.0,0.00012113,2]
[400365438,1767442803259,300.0,0.00012113,2]
[400365439,1767442828325,555.35,0.000121,2]
[400365440,1767442835733,213.73,0.00011114,2]
[400365441,1767442836206,284.98,0.00011597,2]
[400365442,1767442836618,356.22,0.0001208,2]
[400365443,1767442862811,300.0,0.00012113,2]
[400365444,1767442888594,286.66,0.000121,2]
[400365445,1767442903491,157.823,0.00011872,2]
[400365446,1767442903591,183.62270644,0.00011872,2]
[400365447,1767442912529,181.09,0.0001113,2]
[400365448,1767442913004,241.45,0.00011614,2]
[400365449,1767442913488,301.82,0.00012098,2]
[400365450,1767442922230,300.0,0.00012113,2]
[400365451,1767442951032,153.01152516,0.000121,2]
[400365452,1767442951056,396.95847484,0.000121,2]
[400365453,1767442980596,561.23193398,0.00012113,2]
[400365454,1767442982394,300.0,0.00012113,2]
[400365455,1767442989542,1956.22946859,0.00012114,2]
[400365456,1767442990093,157.32,0.00011114,2]
[400365457,1767442990539,209.76,0.00011597,2]
[400365458,1767442991014,262.2,0.00012081,2]
[400365459,1767442994493,500.0,0.00012113,2]
[400365460,1767442994544,500.0,0.00012113,2]
[400365461,1767442994788,500.0,0.00012113,2]
[400365462,1767442994863,368.28230908,0.00012113,2]
[400365463,1767442995373,1200.0,0.00012113,2]
[400365464,1767442999341,405.84710308,0.00012113,2]
[400365465,1767443009191,298.04,0.000121,2]
[400365466,1767443014879,2384.14071043,0.00012114,2]
[400365467,1767443014904,1672.94229342,0.00012114,2]
[400365468,1767443042684,300.0,0.00012113,2]
[400365469,1767443064938,177.72,0.00011431,2]
[400365470,1767443065268,222.16,0.00011908,2]
[400365471,1767443069695,556.88,0.000121,2]
[400365472,1767443101237,300.0,0.00012113,2]
[400365473,1767443102184,300.0,0.00012113,2]
[400365474,1767443102720,300.0,0.00012113,2]
[400365475,1767443102940,573.0,0.00012113,2]
[400365476,1767443103085,300.0,0.00012113,2]
[400365477,1767443128182,303.22,0.000121,2]
[400365478,1767443138369,157.37,0.00011344,2]
[400365479,1767443138844,196.71,0.00011817,2]
[400365480,1767443146161,4640.00770658,0.00012,2]
[400365481,1767443146187,10000.01,0.00012,2]
[400365482,1767443146211,10000.01,0.00012,2]
[400365483,1767443146235,10000.01,0.00012,2]
[400365484,1767443146260,10000.01,0.00012,2]
[400365485,1767443146285,10000.01,0.00012,2]
[400365486,1767443146309,10000.01,0.00012,2]
[400365487,1767443146337,10000.01,0.00012,2]
[400365488,1767443146360,10000.01,0.00012,2]
[400365489,1767443162762,-300.0,0.00011999,2]
[400365490,1767443175871,-1432.53077916,0.00012,2]
[400365491,1767443186370,-240.00397434,0.00012113,2]
[400365493,1767443195044,9520.00205132,0.00011936,2]
[400365494,1767443195067,10000.01,0.00011936,2]
[400365495,1767443195087,10000.01,0.00011936,2]
[400365496,1767443195106,10000.01,0.00011936,2]
[400365497,1767443195128,6335.38891798,0.00011936,2]
[400365498,1767443212038,174.18,0.00011844,2]
[400365499,1767443222969,300.0,0.00012113,2]
[400365500,1767443223549,300.0,0.00012113,2]
[400365501,1767443227062,2890.44108202,0.0001,2]
[400365502,1767443227088,10000.01,0.0001,2]
[400365503,1767443227112,10000.01,0.0001,2]
[400365504,1767443227136,10000.01,0.0001,2]
[400365505,1767443227160,10000.01,0.0001,2]
[400365506,1767443227184,10000.01,0.0001,2]
[400365507,1767443227207,10000.01,0.0001,2]
[400365508,1767443227231,10000.01,0.0001,2]
[400365509,1767443227256,10000.01,0.0001,2]
[400365510,1767443232732,-188.32954994,0.0001,2]
[400365511,1767443236091,-173.67069067,0.0001,2]
[400365512,1767443237531,-200.92147566,0.0001,2]
[400365513,1767443239705,-228.2771496,0.0001,2]
[400365514,1767443242890,-319.49131589,0.0001,2]
[400365515,1767443245038,-480.00794868,0.0001,2]
[400365516,1767443245144,-10000.01,0.0001,2]
[400365517,1767443245220,-300.98719936,0.0001,2]
[400365518,1767443245292,-10000.01,0.0001,2]
[400365519,1767443245395,-10000.01,0.0001,2]
[400365520,1767443245565,-10000.01,0.0001,2]
[400365521,1767443245734,-10000.01,0.0001,2]
[400365522,1767443245919,-10000.01,0.0001,2]
[400365523,1767443246114,-10000.01,0.0001,2]
[400365524,1767443247251,-177.7,0.0001,2]
[400365544,1767443249315,-170.41,0.0001,2]
[400365545,1767443251338,-166.68,0.0001,2]
[400365546,1767443254322,-10000.01,0.0001,2]
[400365547,1767443254456,-10000.01,0.0001,2]
[400365548,1767443254561,-240.44569934,0.0001,2]
[400365549,1767443256614,-193.58627689,0.0001,2]
[400365550,1767443258334,-172.02805785,0.0001,2]
[400365551,1767443259710,-469.2319826,0.0001,2]
[400365552,1767443260870,-10000.01,0.0001,2]
[400365553,1767443261009,-10000.01,0.0001,2]
[400365554,1767443262065,-191.61728058,0.0001,2]
[400365555,1767443264123,-10000.01,0.0001,2]
[400365556,1767443264327,-281.21732008,0.0001,2]
[400365557,1767443264584,-10000.01,0.0001,2]
[400365558,1767443264707,-10000.01,0.0001,2]
[400365559,1767443264942,-2421.39697084,0.0001,2]
[400365560,1767443264975,-208.37099954,0.00011984,2]
[400365561,1767443265008,-193.83,0.000121,2]
[400365562,1767443278369,-268.1597608,0.00012114,2]
[400365563,1767443282687,300.0,0.00012113,2]
[400365564,1767443284573,163.09,0.00011936,2]
[400365565,1767443287127,268.1597608,0.00012114,2]
[400365566,1767443293302,-315.35540128,0.00012114,2]
[400365567,1767443295327,1200.0,0.00012113,2]
[400365568,1767443296506,-238.88394758,0.00012114,2]
[400365569,1767443298033,-287.30063231,0.00012114,2]
[400365571,1767443300320,2421.56429844,0.00011858,2]
[400365572,1767443300347,232.11499986,0.00011858,2]
[400365573,1767443307779,527.34,0.000121,2]
[400365574,1767443307815,-175.26288979,0.00012114,2]
[400365575,1767443311097,-353.27021086,0.00012114,2]
[400365576,1767443313355,-197.23411541,0.00012114,2]
[400365578,1767443315602,-311.46308135,0.00012114,2]
[400365580,1767443322709,-300.0,0.00012114,2]
[400365581,1767443345599,-332.23211888,0.00012114,2]
[400365582,1767443356549,152.71,0.00011819,2]
[400365583,1767443361548,-591.0,0.00012114,2]
[400365584,1767443367794,-151.59812463,0.00012292,2]
[400365585,1767443368011,200.5,0.000121,2]
[400365586,1767443369798,-31.66187537,0.00012292,2]
[400365587,1767443369823,-138.47812463,0.0001231,2]
[400365589,1767443405020,594.0,0.0001231,2]
[400365590,1767443428496,520.81,0.000123,2]
[400365641,1767443438809,-194.89427057,0.0001231,2]
[400365642,1767443438819,-644.39,0.00012329,2]
[400365643,1767443438829,-157.6,0.00012573,2]
[400365644,1767443438839,-520.81,0.000126,2]
[400365645,1767443438849,-279.87917192,0.00012856,2]
[400365646,1767443438859,-223.22806926,0.00013,2]
[400365647,1767443438868,-520.81,0.00013,2]
[400365648,1767443438878,-183.87,0.00013057,2]
[400365649,1767443438888,-183.0,0.00013237,2]
[400365650,1767443438897,-291.35023568,0.00013237,2]
[400365651,1767443438909,-8.64976432,0.00013237,2]
[400365652,1767443438918,-50000.0,0.00013238,2]
[400365653,1767443438928,-500.0,0.00013273,2]
[400365654,1767443438937,-500.0,0.00013273,2]
[400365655,1767443438948,-500.37577239,0.00013273,2]
[400365656,1767443438960,-500.0,0.00013273,2]
[400365657,1767443438974,-500.55502892,0.00013273,2]
[400365658,1767443438984,-371.29616414,0.00013273,2]
[400365659,1767443438993,-500.40812858,0.00013273,2]
[400365660,1767443439003,-500.35714375,0.00013273,2]
[400365661,1767443439013,-500.48237545,0.00013273,2]
[400365662,1767443439023,-500.0,0.00013273,2]
[400365663,1767443439033,-500.0,0.00013273,2]
[400365664,1767443439043,-530.84744,0.00013273,2]
[400365665,1767443439053,-502.86490349,0.00013273,2]
[400365666,1767443439063,-500.0,0.00013273,2]
[400365667,1767443439074,-500.0,0.00013273,2]
[400365668,1767443439085,-500.74961065,0.00013273,2]
[400365669,1767443439095,-500.0,0.00013273,2]
[400365670,1767443439107,-502.52676973,0.00013273,2]
[400365671,1767443439116,-489.45983528,0.00013273,2]
[400365672,1767443439126,-501.20972586,0.00013273,2]
[400365673,1767443439137,-500.91796421,0.00013273,2]
[400365674,1767443439147,-500.70079178,0.00013273,2]
[400365675,1767443439157,-500.0,0.00013273,2]
[400365676,1767443439167,-161.79331584,0.00013273,2]
[400365677,1767443439176,-500.0,0.00013273,2]
[400365678,1767443439187,-500.0,0.00013273,2]
[400365679,1767443439197,-500.0,0.00013273,2]
[400365680,1767443439206,-825.8062572,0.00013273,2]
[400365681,1767443439216,-1312.0,0.00013296,2]
[400365682,1767443439225,-520.81,0.000133,2]
[400365683,1767443439235,-210.13,0.0001354,2]
[400365684,1767443439249,-300.0,0.00013673,2]
[400365685,1767443439270,-191.60962152,0.00013698,2]
[400365686,1767443439286,-518.65088153,0.00013698,2]
[400365687,1767443439304,-529.5136224,0.00013698,2]
[400365688,1767443439324,-500.0,0.00013698,2]
[400365689,1767443439342,-500.0,0.00013698,2]
[400365690,1767443439361,-500.0,0.00013698,2]
[400365691,1767443439378,-500.0,0.00013698,2]
[400365692,1767443439394,-500.0,0.00013698,2]
[400365693,1767443439412,-500.0,0.00013698,2]
[400365694,1767443439429,-500.0,0.00013698,2]
[400365695,1767443439442,-500.0,0.00013698,2]
[400365696,1767443439458,-500.0,0.00013698,2]
[400365697,1767443439476,-500.0,0.00013698,2]
[400365698,1767443439494,-500.0,0.00013698,2]
[400365699,1767443439513,-500.0,0.00013698,2]
[400365700,1767443439527,-500.0,0.00013698,2]
[400365701,1767443439539,-500.0,0.00013698,2]
[400365702,1767443439557,-500.0,0.00013698,2]
[400365703,1767443439572,-500.0,0.00013698,2]
[400365704,1767443439586,-500.0,0.00013698,2]
[400365705,1767443439603,-500.0,0.00013698,2]
[400365706,1767443439616,-500.0,0.00013698,2]
[400365707,1767443439629,-500.0,0.00013698,2]
[400365708,1767443439644,-500.0,0.00013698,2]
[400365709,1767443439659,-500.0,0.00013698,2]
[400365710,1767443439674,-500.0,0.00013698,2]
[400365711,1767443439688,-500.0,0.00013698,2]
[400365712,1767443439702,-500.0,0.00013698,2]
[400365713,1767443439716,-500.0,0.00013698,2]
[400365714,1767443439731,-500.0,0.00013698,2]
[400365715,1767443439747,-500.0,0.00013698,2]
[400365716,1767443439761,-500.0,0.00013698,2]
[400365717,1767443439775,-500.0,0.00013698,2]
[400365718,1767443439790,-500.0,0.00013698,2]
[400365719,1767443439804,-500.0,0.00013698,2]
[400365720,1767443439818,-511.6918153,0.00013698,2]
[400365721,1767443439832,-1730.16,0.00013698,2]
[400365722,1767443439847,-1730.16,0.00013698,2]
[400365723,1767443439862,-1730.16,0.00013698,2]
[400365724,1767443439876,-1730.16,0.00013698,2]
[400365725,1767443439889,-1730.16,0.00013698,2]
[400365726,1767443439903,-1730.16,0.00013698,2]
[400365727,1767443439916,-1730.16,0.00013698,2]
[400365728,1767443439926,-1730.16,0.00013698,2]
[400365729,1767443439938,-1730.16,0.00013698,2]
[400365730,1767443439950,-1730.16,0.00013698,2]
[400365731,1767443439961,-1730.16,0.00013698,2]
[400365732,1767443439973,-1730.16,0.00013698,2]
[400365733,1767443439985,-1730.16,0.00013698,2]
[400365734,1767443439997,-1730.16,0.00013698,2]
[400365735,1767443440009,-1730.16,0.00013698,2]
[400365736,1767443440020,-1730.16,0.00013698,2]
[400365737,1767443440031,-1730.16,0.00013698,2]
[400365738,1767443440043,-1730.16,0.00013698,2]
[400365739,1767443440054,-1730.16,0.00013698,2]
[400365740,1767443440067,-1730.16,0.00013698,2]
[400365741,1767443440080,-1730.16,0.00013698,2]
[400365742,1767443440095,-1730.16,0.00013698,2]
[400365743,1767443440111,-1730.16,0.00013698,2]
[400365745,1767443440125,-1730.18390779,0.00013698,2]
[400365747,1767443440141,-500.0,0.00013698,2]
[400365749,1767443440157,-1167.579961,0.00013699,2]
[400365750,1767443440167,-1384.5057019,0.00013699,2]
[400365751,1767443440177,-470.3499274,0.00013699,2]
[400365752,1767443440187,-500.0,0.00013699,2]
[400365753,1767443440380,-500.0,0.00013699,2]
[400365754,1767443440390,-501.0990515,0.00013699,2]
[400365755,1767443440399,-500.0,0.00013699,2]
[400365756,1767443440408,-520.81,0.000137,2]
[400365757,1767443440418,-832.65051416,0.00013815,2]
[400365758,1767443440427,-673.31490018,0.00013821,2]
[400365759,1767443440436,-1000.0,0.00013821,2]
[400365760,1767443440445,-1000.0,0.00013821,2]
[400365761,1767443440455,-1000.0,0.00013821,2]
[400365762,1767443440464,-1041.66666667,0.00013895,2]
[400365764,1767443440473,-291.78649388,0.00013972,2]
[400365765,1767443440482,-520.81,0.00014,2]
[400365766,1767443440492,-236.4,0.00014024,2]
[400365767,1767443440501,-1000.0,0.00014247,2]
[400365768,1767443440511,-500.0,0.00014247,2]
[400365769,1767443440520,-1000.0,0.00014247,2]
[400365771,1767443440529,-520.81,0.000143,2]
[400365773,1767443440538,-393.37942633,0.0001431,2]
[400365774,1767443440548,-1500.0,0.00014368,2]
[400365775,1767443440558,-622.72672579,0.00014368,2]
[400365776,1767443440567,-1500.0,0.00014368,2]
[400365777,1767443440576,-262.67,0.00014508,2]
[400365778,1767443440586,-1501.6125144,0.00014612,2]
[400365779,1767443440596,-520.81,0.000147,2]
[400365780,1767443440606,-151.0,0.00014736,2]
[400365781,1767443440615,-251.79035134,0.0001475,2]
[400365782,1767443440624,-30000.0,0.0001475,2]
[400365783,1767443440634,-269.61503092,0.0001475,2]
[400365784,1767443440643,-2674.60743027,0.0001475,2]
[400365785,1767443440653,-250.0,0.0001475,2]
[400365786,1767443440664,-250.0,0.0001475,2]
[400365787,1767443440674,-250.0,0.0001475,2]
[400365788,1767443440684,-250.0,0.0001475,2]
[400365790,1767443440693,-250.0,0.0001475,2]
[400365792,1767443440703,-250.0,0.0001475,2]
[400365794,1767443440712,-250.0,0.0001475,2]
[400365795,1767443440721,-250.0,0.0001475,2]
[400365797,1767443440731,-250.0,0.0001475,2]
[400365798,1767443440740,-1500.0,0.00014795,2]
[400365800,1767443440751,-151.0,0.000148,2]
[400365802,1767443440761,-1361.58456942,0.000149,2]
[400365803,1767443440771,-183.64157514,0.00014916,2]
[400365804,1767443440780,-167.75741766,0.00014916,2]
[400365805,1767443440790,-1000.0,0.00015,2]
[400365806,1767443440799,-501.07960354,0.00015,2]
[400365807,1767443440808,-531.17953927,0.00015,3]
[400365808,1767443440818,-520.81,0.00015,2]
[400365809,1767443440827,-152.42,0.00015056,2]
[400365810,1767443440840,-800.0,0.00015068,2]
[400365811,1767443440853,-314.28,0.000151,2]
[400365813,1767443440862,-2912.27123802,0.00015298,2]
[400365814,1767443440872,-520.81,0.000153,2]
[400365816,1767443440891,-2000.0,0.00015342,2]
[400365818,1767443440901,-151.0,0.000154,2]
[400365820,1767443440911,-520.81,0.000157,2]
[400365822,1767443440921,-2500.0,0.0001589,2]
[400365824,1767443440930,-151.0,0.000159,2]
[400365826,1767443440940,-1080.92186024,0.00015936,2]
[400365828,1767443440949,-2177.41877161,0.0001595,2]
[400365829,1767443440958,-100000.0,0.0001599,2]
[400365830,1767443440968,-520.81,0.00016,2]
[400365831,1767443440978,-1093.84384208,0.00016164,2]
[400365832,1767443440987,-250.0,0.00016266,2]
[400365833,1767443440997,-520.81,0.000163,2]
[400365834,1767443441006,-453.38645747,0.0001631,2]
[400365835,1767443441015,-16856.74294805,0.00016338,2]
[400365836,1767443441025,-2148.44119647,0.00016438,2]
[400365837,1767443441035,-4829.15869936,0.00016438,2]
[400365838,1767443441046,-7171.38969637,0.00016438,2]
[400365839,1767443441056,-7171.38969637,0.00016438,2]
[400365840,1767443441065,-7171.38969637,0.00016438,2]
[400365841,1767443441075,-7171.38969637,0.00016438,2]
[400365842,1767443441084,-7171.38969637,0.00016438,2]
[400365843,1767443441095,-7171.38969637,0.00016438,2]
[400365844,1767443441107,-7171.38969637,0.00016438,2]
[400365845,1767443441116,-7171.38969637,0.00016438,2]
[400365846,1767443441126,-7171.38969637,0.00016438,2]
[400365847,1767443441135,-7171.38969637,0.00016438,2]
[400365848,1767443441145,-7171.38969637,0.00016438,2]
[400365849,1767443441155,-7171.38969637,0.00016438,2]
[400365850,1767443441180,-7171.38969637,0.00016438,2]
[400365851,1767443441197,-7171.38969637,0.00016438,2]
[400365852,1767443441208,-7171.38969637,0.00016438,2]
[400365853,1767443441220,-7171.38969637,0.00016438,2]
[400365854,1767443441231,-7171.38969637,0.00016438,2]
[400365855,1767443441243,-7171.38969637,0.00016438,2]
[400365856,1767443441253,-7171.38969637,0.00016438,2]
[400365857,1767443441263,-7171.38969637,0.00016438,2]
[400365858,1767443441274,-7171.38969637,0.00016438,2]
[400365859,1767443441284,-7171.38969637,0.00016438,2]
[400365860,1767443441295,-7171.38969637,0.00016438,2]
[400365861,1767443441305,-7171.38969637,0.00016438,2]
[400365862,1767443441315,-7171.38969637,0.00016438,2]
[400365863,1767443441325,-7171.38969637,0.00016438,2]